[Event "*** Titled Tuesday Blitz"]
[Site "Chess.com"]
[Date "2020.11.10"]
[Round "10"]
[White "IngOscarArdila"]
[Black "annacramling"]
[Result "1-0"]
[WhiteElo "2130"]
[BlackElo "2017"]
[TimeControl "180+1"]
[EndTime "12:00:56 PST"]
[Termination "IngOscarArdila won on time"]

1. d4 {[%clk 0:03:00.9]} 1... Nf6 {[%clk 0:02:58.9]} 2. c4 {[%clk 0:03:01.2]}
2... e6 {[%clk 0:02:57.8]} 3. Nc3 {[%clk 0:03:01]} 3... Bb4 {[%clk 0:02:57.2]}
4. Bd2 {[%clk 0:03:01.6]} 4... b6 {[%clk 0:02:37.2]} 5. Nf3 {[%clk 0:03:00.1]}
5... Bb7 {[%clk 0:02:37]} 6. e3 {[%clk 0:03:00.3]} 6... O-O {[%clk 0:02:36.3]}
7. Be2 {[%clk 0:03:00]} 7... d5 {[%clk 0:02:36.4]} 8. O-O {[%clk 0:02:57.8]}
8... Bd6 {[%clk 0:02:32.4]} 9. cxd5 {[%clk 0:02:56.3]} 9... exd5 {[%clk
0:02:29.1]} 10. Rc1 {[%clk 0:02:55.6]} 10... a6 {[%clk 0:02:21.2]} 11. Bd3
{[%clk 0:02:51.6]} 11... Nbd7 {[%clk 0:02:19.7]} 12. Qc2 {[%clk 0:02:49.9]}
12... c5 {[%clk 0:02:19.8]} 13. h3 {[%clk 0:02:31.2]} 13... Rc8 {[%clk
0:02:11.8]} 14. dxc5 {[%clk 0:02:28.1]} 14... Nxc5 {[%clk 0:02:09]} 15. Bf5
{[%clk 0:02:26.8]} 15... Ne6 {[%clk 0:02:03]} 16. Qb3 {[%clk 0:02:24.1]} 16...
b5 {[%clk 0:01:44.3]} 17. a4 {[%clk 0:02:18.1]} 17... b4 {[%clk 0:01:43.6]} 18.
Ne2 {[%clk 0:02:15.1]} 18... Ne4 {[%clk 0:01:24.6]} 19. Rxc8 {[%clk 0:02:08]}
19... Qxc8 {[%clk 0:01:20.3]} 20. Rc1 {[%clk 0:02:07.4]} 20... Qd7 {[%clk
0:01:15]} 21. Bxb4 {[%clk 0:02:01.8]} 21... Rb8 {[%clk 0:00:43.7]} 22. Bxd6
{[%clk 0:01:57.4]} 22... Qxd6 {[%clk 0:00:40.4]} 23. Bxe4 {[%clk 0:01:54.2]}
23... dxe4 {[%clk 0:00:41.3]} 24. Nfd4 {[%clk 0:01:52.2]} 24... Bd5 {[%clk
0:00:28.4]} 25. Qc3 {[%clk 0:01:47]} 25... h6 {[%clk 0:00:24.9]} 26. Nxe6 {[%clk
0:01:45.7]} 26... Bxe6 {[%clk 0:00:18.2]} 27. Nd4 {[%clk 0:01:40]} 27... Bd5
{[%clk 0:00:14.5]} 28. Nf5 {[%clk 0:01:25.8]} 28... f6 {[%clk 0:00:11.4]} 29.
Nxd6 {[%clk 0:01:23.9]} 1-0

[Event "*** Titled Tuesday Blitz"]
[Site "Chess.com"]
[Date "2020.11.10"]
[Round "10"]
[White "Hasangatin_Ramil"]
[Black "ChristopherYoo"]
[Result "0-1"]
[WhiteElo "2563"]
[BlackElo "2823"]
[TimeControl "180+1"]
[EndTime "12:01:04 PST"]
[Termination "ChristopherYoo won by resignation"]

1. e4 {[%clk 0:03:00.9]} 1... c5 {[%clk 0:02:36.1]} 2. Nf3 {[%clk 0:03:00.1]}
2... e6 {[%clk 0:02:36.2]} 3. g3 {[%clk 0:02:59.8]} 3... d5 {[%clk 0:02:32.1]}
4. exd5 {[%clk 0:02:59.5]} 4... exd5 {[%clk 0:02:33]} 5. d4 {[%clk 0:02:59.6]}
5... Nc6 {[%clk 0:02:32.2]} 6. Bg2 {[%clk 0:02:59.8]} 6... Nf6 {[%clk
0:02:28.6]} 7. O-O {[%clk 0:02:59.4]} 7... Be7 {[%clk 0:02:20.7]} 8. Be3 {[%clk
0:02:59.3]} 8... Ng4 {[%clk 0:01:45.1]} 9. Bf4 {[%clk 0:02:56]} 9... O-O {[%clk
0:01:42.1]} 10. Nc3 {[%clk 0:02:50.7]} 10... cxd4 {[%clk 0:01:31.2]} 11. Nxd4
{[%clk 0:02:51.6]} 11... Bc5 {[%clk 0:01:15.8]} 12. Nb3 {[%clk 0:02:48.7]} 12...
Bxf2+ {[%clk 0:01:11.1]} 13. Rxf2 {[%clk 0:02:47.8]} 13... Nxf2 {[%clk 0:01:12]}
14. Kxf2 {[%clk 0:02:48.4]} 14... d4 {[%clk 0:01:02.2]} 15. Ne4 {[%clk 0:02:38]}
15... Be6 {[%clk 0:00:54.5]} 16. Kg1 {[%clk 0:02:21.6]} 16... Qb6 {[%clk
0:00:41.1]} 17. Kh1 {[%clk 0:02:18.4]} 17... Rfd8 {[%clk 0:00:40.6]} 18. Bg5
{[%clk 0:02:04.1]} 18... Rd5 {[%clk 0:00:35.3]} 19. Qd2 {[%clk 0:01:55.9]} 19...
a5 {[%clk 0:00:32.3]} 20. Nf6+ {[%clk 0:01:33.5]} 20... gxf6 {[%clk 0:00:29.8]}
21. Bxf6 {[%clk 0:01:34.4]} 21... Rh5 {[%clk 0:00:19.4]} 22. Rf1 {[%clk
0:01:24]} 22... Qb5 {[%clk 0:00:17.3]} 23. Nxd4 {[%clk 0:01:15.5]} 23... Nxd4
{[%clk 0:00:14.8]} 24. Bxd4 {[%clk 0:01:16.4]} 24... Bd5 {[%clk 0:00:12.4]} 25.
c3 {[%clk 0:01:13.1]} 25... Qxf1+ {[%clk 0:00:11.4]} 26. Bg1 {[%clk 0:01:12.7]}
26... Bxg2+ {[%clk 0:00:11.3]} 27. Qxg2 {[%clk 0:01:11.8]} 27... Qxg2+ {[%clk
0:00:12.2]} 28. Kxg2 {[%clk 0:01:12]} 28... Rb5 {[%clk 0:00:11.9]} 0-1

[Event "*** Titled Tuesday Blitz"]
[Site "Chess.com"]
[Date "2020.11.10"]
[Round "10"]
[White "Jumbo"]
[Black "mbojan"]
[Result "1-0"]
[WhiteElo "2874"]
[BlackElo "2687"]
[TimeControl "180+1"]
[EndTime "12:01:17 PST"]
[Termination "Jumbo won by resignation"]

1. d4 {[%clk 0:03:00.9]} 1... g6 {[%clk 0:02:59.9]} 2. e4 {[%clk 0:02:57.9]}
2... Bg7 {[%clk 0:02:59.9]} 3. Nc3 {[%clk 0:02:58.5]} 3... d6 {[%clk 0:03:00]}
4. Be3 {[%clk 0:02:58.6]} 4... a6 {[%clk 0:03:00]} 5. Qd2 {[%clk 0:02:56.4]}
5... b5 {[%clk 0:02:59]} 6. Nf3 {[%clk 0:02:54.2]} 6... Bb7 {[%clk 0:02:57.9]}
7. Bd3 {[%clk 0:02:53.6]} 7... Nd7 {[%clk 0:02:56.6]} 8. Ne2 {[%clk 0:02:52.2]}
8... c5 {[%clk 0:02:44.6]} 9. c3 {[%clk 0:02:51.7]} 9... Ngf6 {[%clk 0:02:36.4]}
10. Ng3 {[%clk 0:02:51.5]} 10... Ng4 {[%clk 0:02:26.8]} 11. Bf4 {[%clk
0:02:42.1]} 11... e5 {[%clk 0:02:24.9]} 12. dxe5 {[%clk 0:02:30.6]} 12... dxe5
{[%clk 0:02:24.7]} 13. Bg5 {[%clk 0:02:31]} 13... f6 {[%clk 0:02:24.5]} 14. Bh4
{[%clk 0:02:25.4]} 14... c4 {[%clk 0:02:14.1]} 15. Bc2 {[%clk 0:02:25]} 15...
Nc5 {[%clk 0:02:12.6]} 16. h3 {[%clk 0:01:50]} 16... Nh6 {[%clk 0:01:56.3]} 17.
Qe3 {[%clk 0:01:41.6]} 17... Ne6 {[%clk 0:01:44.6]} 18. Nxe5 {[%clk 0:01:25.6]}
18... Qc7 {[%clk 0:01:28.7]} 19. Nf3 {[%clk 0:01:10]} 19... g5 {[%clk
0:01:27.2]} 20. e5 {[%clk 0:01:10.3]} 20... gxh4 {[%clk 0:01:21.3]} 21. exf6
{[%clk 0:01:09.9]} 21... hxg3 {[%clk 0:00:25.7]} 22. Qxe6+ {[%clk 0:01:09.1]}
22... Kf8 {[%clk 0:00:26.3]} 23. O-O {[%clk 0:01:01.6]} 23... Re8 {[%clk
0:00:24.4]} 24. fxg7+ {[%clk 0:00:59.4]} 24... Kxg7 {[%clk 0:00:25.3]} 25. Nd4
{[%clk 0:00:59.5]} 25... Bc8 {[%clk 0:00:05.9]} 26. Qd5 {[%clk 0:00:58.2]} 26...
Bb7 {[%clk 0:00:04.8]} 27. Qg5+ {[%clk 0:00:57.8]} 1-0

[Event "*** Titled Tuesday Blitz"]
[Site "Chess.com"]
[Date "2020.11.10"]
[Round "10"]
[White "MasterMK73"]
[Black "ajdemipopushi"]
[Result "1-0"]
[WhiteElo "2283"]
[BlackElo "2393"]
[TimeControl "180+1"]
[EndTime "12:01:21 PST"]
[Termination "MasterMK73 won by resignation"]

1. e4 {[%clk 0:03:00.9]} 1... c5 {[%clk 0:02:59.7]} 2. Nf3 {[%clk 0:02:59.9]}
2... g6 {[%clk 0:03:00]} 3. c4 {[%clk 0:02:55.3]} 3... Bg7 {[%clk 0:02:59.6]} 4.
d4 {[%clk 0:02:52.9]} 4... cxd4 {[%clk 0:02:59.9]} 5. Nxd4 {[%clk 0:02:53.1]}
5... Nc6 {[%clk 0:03:00.6]} 6. Nc2 {[%clk 0:02:51.1]} 6... d6 {[%clk 0:03:00.2]}
7. Be2 {[%clk 0:02:48.4]} 7... Be6 {[%clk 0:03:00.1]} 8. Nc3 {[%clk 0:02:42.5]}
8... Bxc3+ {[%clk 0:02:59.4]} 9. bxc3 {[%clk 0:02:41.8]} 9... Nf6 {[%clk
0:03:00]} 10. f3 {[%clk 0:02:30.8]} 10... Rc8 {[%clk 0:02:59.1]} 11. Ne3 {[%clk
0:02:26.2]} 11... Na5 {[%clk 0:02:52.3]} 12. Nd5 {[%clk 0:02:14.1]} 12... Nd7
{[%clk 0:02:43.5]} 13. Qd4 {[%clk 0:02:07.7]} 13... f6 {[%clk 0:02:34.9]} 14.
Qxa7 {[%clk 0:01:44.8]} 14... b6 {[%clk 0:01:54.9]} 15. Qa6 {[%clk 0:01:33]}
15... O-O {[%clk 0:00:55.2]} 16. Nf4 {[%clk 0:01:26.6]} 16... Bf7 {[%clk
0:00:51.5]} 17. Qb5 {[%clk 0:01:20.3]} 17... Rc5 {[%clk 0:00:48.3]} 18. Qb4
{[%clk 0:01:19.4]} 18... Ne5 {[%clk 0:00:37.5]} 19. Be3 {[%clk 0:01:16]} 19...
Rc6 {[%clk 0:00:37.6]} 20. Nd5 {[%clk 0:00:56.1]} 20... Naxc4 {[%clk 0:00:36.5]}
21. Bd4 {[%clk 0:00:54.6]} 21... Qd7 {[%clk 0:00:12.3]} 22. f4 {[%clk 0:00:53]}
22... e6 {[%clk 0:00:04.2]} 23. Nxf6+ {[%clk 0:00:46.7]} 1-0

[Event "*** Titled Tuesday Blitz"]
[Site "Chess.com"]
[Date "2020.11.10"]
[Round "10"]
[White "26andrej26"]
[Black "anon481216"]
[Result "1-0"]
[WhiteElo "2531"]
[BlackElo "2401"]
[TimeControl "180+1"]
[EndTime "12:01:23 PST"]
[Termination "26andrej26 won by resignation"]

1. e4 {[%clk 0:03:00.9]} 1... c5 {[%clk 0:02:59.1]} 2. Nf3 {[%clk 0:03:00.8]}
2... Nf6 {[%clk 0:02:59]} 3. e5 {[%clk 0:02:57.1]} 3... Nd5 {[%clk 0:02:58.7]}
4. Nc3 {[%clk 0:02:57.8]} 4... Nxc3 {[%clk 0:02:58.2]} 5. dxc3 {[%clk 0:02:52]}
5... Nc6 {[%clk 0:02:58.7]} 6. Bc4 {[%clk 0:02:49.8]} 6... e6 {[%clk 0:02:55.2]}
7. O-O {[%clk 0:02:48.7]} 7... Qc7 {[%clk 0:02:55.5]} 8. Re1 {[%clk 0:02:48.6]}
8... d6 {[%clk 0:02:55.1]} 9. exd6 {[%clk 0:02:46.3]} 9... Bxd6 {[%clk
0:02:54.9]} 10. h3 {[%clk 0:02:46]} 10... O-O {[%clk 0:02:54.4]} 11. Qe2 {[%clk
0:02:38.7]} 11... b6 {[%clk 0:02:51.6]} 12. Bg5 {[%clk 0:02:37.9]} 12... Bb7
{[%clk 0:02:50.9]} 13. Rad1 {[%clk 0:02:37.6]} 13... Rae8 {[%clk 0:02:35]} 14.
a3 {[%clk 0:02:35.4]} 14... h6 {[%clk 0:02:27.1]} 15. Bc1 {[%clk 0:02:33.8]}
15... Ne7 {[%clk 0:02:22.5]} 16. Bb5 {[%clk 0:02:25.2]} 16... Rd8 {[%clk
0:02:20.9]} 17. Bd3 {[%clk 0:02:25.4]} 17... Bf4 {[%clk 0:02:04.8]} 18. Bxf4
{[%clk 0:02:11.4]} 18... Qxf4 {[%clk 0:02:04.4]} 19. Qe5 {[%clk 0:02:12.3]}
19... Qxe5 {[%clk 0:02:02.4]} 20. Nxe5 {[%clk 0:02:13.2]} 20... Nc6 {[%clk
0:02:00.6]} 21. Nf3 {[%clk 0:02:02.8]} 21... Ne7 {[%clk 0:01:52.5]} 22. Ne5
{[%clk 0:02:01.2]} 22... Nc6 {[%clk 0:01:52.4]} 23. Be4 {[%clk 0:01:58.8]} 23...
Nxe5 {[%clk 0:01:52]} 24. Bxb7 {[%clk 0:01:58.4]} 24... Nc4 {[%clk 0:01:52.2]}
25. Rb1 {[%clk 0:01:45]} 25... Rd2 {[%clk 0:01:50.5]} 26. Be4 {[%clk 0:01:44.8]}
26... Rfd8 {[%clk 0:01:43.1]} 27. Bd3 {[%clk 0:01:44.3]} 27... b5 {[%clk
0:01:32.5]} 28. a4 {[%clk 0:01:37]} 28... a6 {[%clk 0:01:32.1]} 29. axb5 {[%clk
0:01:36.9]} 29... axb5 {[%clk 0:01:32.1]} 30. Rec1 {[%clk 0:01:03.9]} 30... Nd6
{[%clk 0:01:25.9]} 31. Kf1 {[%clk 0:01:03.4]} 31... c4 {[%clk 0:01:25]} 32. Ke1
{[%clk 0:01:03]} 32... Rxd3 {[%clk 0:01:24]} 33. cxd3 {[%clk 0:01:03]} 33...
cxd3 {[%clk 0:01:24.5]} 34. Rd1 {[%clk 0:00:55.4]} 34... Nc4 {[%clk 0:01:21.4]}
35. b3 {[%clk 0:00:52.3]} 35... Na3 {[%clk 0:01:21.2]} 36. Rbc1 {[%clk 0:00:46]}
36... e5 {[%clk 0:01:20.1]} 37. c4 {[%clk 0:00:40]} 37... b4 {[%clk 0:01:18.3]}
38. c5 {[%clk 0:00:38.5]} 38... e4 {[%clk 0:01:18.3]} 39. c6 {[%clk 0:00:38.3]}
39... Nb5 {[%clk 0:01:17.6]} 40. c7 {[%clk 0:00:29.5]} 40... Rc8 {[%clk
0:01:17.4]} 41. Rc4 {[%clk 0:00:30.2]} 41... Nc3 {[%clk 0:01:16.1]} 42. Rc1
{[%clk 0:00:25.2]} 42... f5 {[%clk 0:01:12]} 43. Rxb4 {[%clk 0:00:22.7]} 1-0

[Event "*** Titled Tuesday Blitz"]
[Site "Chess.com"]
[Date "2020.11.10"]
[Round "10"]
[White "Nils_03"]
[Black "Lady_Nika"]
[Result "0-1"]
[WhiteElo "2249"]
[BlackElo "2371"]
[TimeControl "180+1"]
[EndTime "12:01:26 PST"]
[Termination "Lady_Nika won by resignation"]

1. Nf3 {[%clk 0:03:00.9]} 1... d5 {[%clk 0:02:59.4]} 2. g3 {[%clk 0:02:59.9]}
2... e6 {[%clk 0:02:58.3]} 3. Bg2 {[%clk 0:02:59.8]} 3... Bd6 {[%clk 0:02:58.5]}
4. O-O {[%clk 0:03:00.7]} 4... f5 {[%clk 0:02:56.9]} 5. b3 {[%clk 0:02:59.6]}
5... Nf6 {[%clk 0:02:57.1]} 6. Bb2 {[%clk 0:02:58.8]} 6... O-O {[%clk
0:02:57.7]} 7. d3 {[%clk 0:02:57.9]} 7... Nbd7 {[%clk 0:02:56.6]} 8. Nbd2 {[%clk
0:02:57.7]} 8... e5 {[%clk 0:02:54.2]} 9. e4 {[%clk 0:02:54.6]} 9... fxe4 {[%clk
0:02:52.5]} 10. dxe4 {[%clk 0:02:54.6]} 10... d4 {[%clk 0:02:51.7]} 11. Qe2
{[%clk 0:02:53.1]} 11... Qe7 {[%clk 0:02:49.1]} 12. Nc4 {[%clk 0:02:48.1]} 12...
Nc5 {[%clk 0:02:45.6]} 13. Nfd2 {[%clk 0:02:45.3]} 13... Bg4 {[%clk 0:02:44.5]}
14. f3 {[%clk 0:02:40.6]} 14... Bh5 {[%clk 0:02:44.4]} 15. Nxd6 {[%clk
0:02:34.1]} 15... cxd6 {[%clk 0:02:42]} 16. Ba3 {[%clk 0:02:32.9]} 16... Rac8
{[%clk 0:02:36.4]} 17. Rac1 {[%clk 0:02:27]} 17... Kh8 {[%clk 0:02:34.7]} 18. c4
{[%clk 0:02:25.2]} 18... Qf7 {[%clk 0:02:26.8]} 19. Bxc5 {[%clk 0:02:22.4]}
19... dxc5 {[%clk 0:02:26.2]} 20. Bh3 {[%clk 0:02:17.5]} 20... Rce8 {[%clk
0:02:25.5]} 21. a3 {[%clk 0:02:08.7]} 21... h6 {[%clk 0:02:20.8]} 22. b4 {[%clk
0:02:06.7]} 22... b6 {[%clk 0:02:20]} 23. Rb1 {[%clk 0:02:05.2]} 23... Rb8
{[%clk 0:02:19.3]} 24. Rb3 {[%clk 0:01:58.6]} 24... Rb7 {[%clk 0:02:15.9]} 25.
Rfb1 {[%clk 0:01:57.6]} 25... Rfb8 {[%clk 0:02:15.2]} 26. Kg2 {[%clk 0:01:49.9]}
26... Bg6 {[%clk 0:02:08.7]} 27. bxc5 {[%clk 0:01:44.4]} 27... bxc5 {[%clk
0:02:08.5]} 28. Be6 {[%clk 0:01:44.1]} 28... Qc7 {[%clk 0:02:01.3]} 29. Bd5
{[%clk 0:01:36.5]} 29... Rxb3 {[%clk 0:02:00.5]} 30. Rxb3 {[%clk 0:01:37.4]}
30... Rxb3 {[%clk 0:01:59.7]} 31. Nxb3 {[%clk 0:01:38.3]} 31... Qb6 {[%clk
0:01:59.1]} 32. Qd3 {[%clk 0:01:33.6]} 32... a5 {[%clk 0:01:55.4]} 33. h4 {[%clk
0:01:12.5]} 33... a4 {[%clk 0:01:54.1]} 34. Nd2 {[%clk 0:01:11.5]} 34... Qb2
{[%clk 0:01:48.7]} 35. Kh3 {[%clk 0:01:06.2]} 35... Be8 {[%clk 0:01:37.3]} 36.
f4 {[%clk 0:01:01.5]} 36... Bd7+ {[%clk 0:01:34.9]} 37. f5 {[%clk 0:01:01.3]}
37... Nxd5 {[%clk 0:01:35]} 38. cxd5 {[%clk 0:00:57]} 38... Bb5 {[%clk
0:01:34.5]} 39. Qf3 {[%clk 0:00:40.3]} 39... Qc3 {[%clk 0:01:15.1]} 40. Qh5
{[%clk 0:00:34.3]} 40... Qxd2 {[%clk 0:01:11.2]} 41. f6 {[%clk 0:00:33.7]} 41...
Bf1+ {[%clk 0:01:09.9]} 42. Kg4 {[%clk 0:00:31.5]} 42... Qe2+ {[%clk 0:01:07.1]}
0-1

[Event "*** Titled Tuesday Blitz"]
[Site "Chess.com"]
[Date "2020.11.10"]
[Round "10"]
[White "Boudicca64"]
[Black "Klavdia_Nik"]
[Result "0-1"]
[WhiteElo "1850"]
[BlackElo "2113"]
[TimeControl "180+1"]
[EndTime "12:01:26 PST"]
[Termination "Klavdia_Nik won on time"]

1. e4 {[%clk 0:03:00.9]} 1... g6 {[%clk 0:02:57]} 2. d4 {[%clk 0:02:58.9]} 2...
d6 {[%clk 0:02:53.4]} 3. Be3 {[%clk 0:02:58.6]} 3... Bg7 {[%clk 0:02:53.3]} 4.
Nc3 {[%clk 0:02:58.2]} 4... c6 {[%clk 0:02:52.8]} 5. Qd2 {[%clk 0:02:56.7]} 5...
Nd7 {[%clk 0:02:46.7]} 6. Be2 {[%clk 0:02:55]} 6... b5 {[%clk 0:02:42.3]} 7. Nf3
{[%clk 0:02:32.7]} 7... Bb7 {[%clk 0:02:38.7]} 8. O-O {[%clk 0:02:30.7]} 8... a6
{[%clk 0:02:26.1]} 9. d5 {[%clk 0:02:20.5]} 9... c5 {[%clk 0:02:25.1]} 10. Rad1
{[%clk 0:02:13.5]} 10... b4 {[%clk 0:02:12.4]} 11. Na4 {[%clk 0:02:11.9]} 11...
Ngf6 {[%clk 0:01:57.8]} 12. Qd3 {[%clk 0:01:55.8]} 12... Ng4 {[%clk 0:01:55.8]}
13. c4 {[%clk 0:01:52.4]} 13... Nxe3 {[%clk 0:01:47]} 14. Qxe3 {[%clk
0:01:50.4]} 14... O-O {[%clk 0:01:47.5]} 15. Bd3 {[%clk 0:01:27.2]} 15... a5
{[%clk 0:01:39.2]} 16. g3 {[%clk 0:01:18.3]} 16... Nf6 {[%clk 0:01:38.7]} 17.
Nh4 {[%clk 0:01:15.9]} 17... Bc8 {[%clk 0:01:31.8]} 18. Kg2 {[%clk 0:01:12.6]}
18... Bd7 {[%clk 0:01:26.3]} 19. b3 {[%clk 0:01:09.8]} 19... Ng4 {[%clk
0:01:22.7]} 20. Qf4 {[%clk 0:01:06.9]} 20... Rb8 {[%clk 0:01:14.4]} 21. h3
{[%clk 0:00:59.5]} 21... Ne5 {[%clk 0:01:13]} 22. Qe3 {[%clk 0:00:56.2]} 22...
Qc8 {[%clk 0:01:08.7]} 23. g4 {[%clk 0:00:41.7]} 23... Nxd3 {[%clk 0:01:00.9]}
24. Rxd3 {[%clk 0:00:37.9]} 24... Bxa4 {[%clk 0:00:58.3]} 25. bxa4 {[%clk
0:00:36]} 25... Qd7 {[%clk 0:00:58.9]} 26. f4 {[%clk 0:00:24.7]} 26... Qxa4
{[%clk 0:00:56.3]} 27. e5 {[%clk 0:00:19.8]} 27... Qxa2+ {[%clk 0:00:55.5]} 28.
Rf2 {[%clk 0:00:17.5]} 28... Qxc4 {[%clk 0:00:55.9]} 0-1

[Event "*** Titled Tuesday Blitz"]
[Site "Chess.com"]
[Date "2020.11.10"]
[Round "10"]
[White "zmeeed67"]
[Black "Ave_Mariia"]
[Result "0-1"]
[WhiteElo "2360"]
[BlackElo "2507"]
[TimeControl "180+1"]
[EndTime "12:01:27 PST"]
[Termination "Ave_Mariia won by resignation"]

1. e4 {[%clk 0:03:00.9]} 1... c5 {[%clk 0:02:59.8]} 2. g3 {[%clk 0:03:00.8]}
2... Nc6 {[%clk 0:02:57]} 3. Bg2 {[%clk 0:03:00.8]} 3... g6 {[%clk 0:02:57]} 4.
Ne2 {[%clk 0:03:00.6]} 4... Bg7 {[%clk 0:02:57.3]} 5. O-O {[%clk 0:03:00.3]}
5... Nf6 {[%clk 0:02:55.7]} 6. Nbc3 {[%clk 0:03:00.2]} 6... d6 {[%clk
0:02:54.8]} 7. a3 {[%clk 0:02:59.4]} 7... O-O {[%clk 0:02:53.5]} 8. Rb1 {[%clk
0:02:59.9]} 8... Nd4 {[%clk 0:02:37.8]} 9. Nxd4 {[%clk 0:02:54.3]} 9... cxd4
{[%clk 0:02:38.7]} 10. Ne2 {[%clk 0:02:54.6]} 10... d5 {[%clk 0:02:16.2]} 11. e5
{[%clk 0:02:32.2]} 11... Ng4 {[%clk 0:02:16]} 12. Nxd4 {[%clk 0:02:06.3]} 12...
Nxe5 {[%clk 0:02:12.8]} 13. Nf3 {[%clk 0:01:51.5]} 13... Bg4 {[%clk 0:02:08.1]}
14. d4 {[%clk 0:01:37.6]} 14... Nc4 {[%clk 0:02:02.1]} 15. h3 {[%clk 0:01:30.6]}
15... Bf5 {[%clk 0:02:01.6]} 16. b3 {[%clk 0:01:18.1]} 16... Nd6 {[%clk
0:01:59.3]} 17. Ne5 {[%clk 0:01:17.1]} 17... Rc8 {[%clk 0:01:48.5]} 18. Rb2
{[%clk 0:01:09.2]} 18... Be4 {[%clk 0:01:43.7]} 19. f3 {[%clk 0:01:03.5]} 19...
Bf5 {[%clk 0:01:42.5]} 20. g4 {[%clk 0:01:03]} 20... f6 {[%clk 0:01:38.3]} 21.
gxf5 {[%clk 0:00:51.2]} 21... fxe5 {[%clk 0:01:36.8]} 22. dxe5 {[%clk
0:00:49.2]} 22... Nxf5 {[%clk 0:01:34.5]} 23. f4 {[%clk 0:00:46.9]} 23... Qb6+
{[%clk 0:01:32.2]} 24. Kh2 {[%clk 0:00:44.6]} 24... d4 {[%clk 0:01:29.1]} 25.
Qe1 {[%clk 0:00:30.2]} 25... Ne3 {[%clk 0:01:25.5]} 26. Bxe3 {[%clk 0:00:25.5]}
26... dxe3 {[%clk 0:01:25.9]} 27. Rf3 {[%clk 0:00:23.9]} 27... Bh6 {[%clk
0:01:21.5]} 28. Kg3 {[%clk 0:00:18.9]} 28... Qd4 {[%clk 0:01:19.2]} 29. Ra2
{[%clk 0:00:14.4]} 29... Bxf4+ {[%clk 0:01:18.2]} 30. Kg4 {[%clk 0:00:10.2]}
30... Bxe5+ {[%clk 0:01:07.7]} 31. Kg5 {[%clk 0:00:10.1]} 31... Bf6+ {[%clk
0:01:06.6]} 32. Kh6 {[%clk 0:00:09.5]} 32... Bg7+ {[%clk 0:01:01.1]} 33. Kg5
{[%clk 0:00:09.4]} 33... Rc5+ {[%clk 0:01:01.5]} 0-1

[Event "*** Titled Tuesday Blitz"]
[Site "Chess.com"]
[Date "2020.11.10"]
[Round "10"]
[White "AttractiveMustard"]
[Black "xberli"]
[Result "0-1"]
[WhiteElo "2396"]
[BlackElo "2531"]
[TimeControl "180+1"]
[EndTime "12:01:30 PST"]
[Termination "xberli won on time"]

1. e4 {[%clk 0:03:00.9]} 1... c5 {[%clk 0:02:59.6]} 2. Nf3 {[%clk 0:03:00.4]}
2... d6 {[%clk 0:02:59.7]} 3. d4 {[%clk 0:02:57.9]} 3... cxd4 {[%clk 0:03:00.6]}
4. Nxd4 {[%clk 0:02:58.5]} 4... Nf6 {[%clk 0:03:01.2]} 5. Nc3 {[%clk 0:02:59.1]}
5... a6 {[%clk 0:03:01.8]} 6. Be3 {[%clk 0:02:58.9]} 6... e5 {[%clk 0:03:01.3]}
7. Nf3 {[%clk 0:02:59.1]} 7... Be7 {[%clk 0:03:01.4]} 8. Bc4 {[%clk 0:02:58.5]}
8... O-O {[%clk 0:03:02.3]} 9. O-O {[%clk 0:02:58.1]} 9... Be6 {[%clk
0:03:02.8]} 10. Bxe6 {[%clk 0:02:54.3]} 10... fxe6 {[%clk 0:03:03.7]} 11. Na4
{[%clk 0:02:54.8]} 11... Nbd7 {[%clk 0:02:42.5]} 12. c4 {[%clk 0:02:50.9]} 12...
Nxe4 {[%clk 0:02:39.4]} 13. Qb3 {[%clk 0:02:28.5]} 13... Qc8 {[%clk 0:02:26]}
14. c5 {[%clk 0:02:13.1]} 14... d5 {[%clk 0:02:17.4]} 15. Rac1 {[%clk
0:02:02.7]} 15... Kh8 {[%clk 0:02:16.2]} 16. Nb6 {[%clk 0:01:51]} 16... Qc7
{[%clk 0:02:02.9]} 17. Nxa8 {[%clk 0:01:48.6]} 17... Rxa8 {[%clk 0:02:01.3]} 18.
Qc2 {[%clk 0:01:40.3]} 18... Rf8 {[%clk 0:01:45.6]} 19. b4 {[%clk 0:01:36.6]}
19... Nb8 {[%clk 0:01:42]} 20. a3 {[%clk 0:01:26.8]} 20... Nc6 {[%clk
0:01:38.4]} 21. Rfd1 {[%clk 0:01:11.9]} 21... Nf6 {[%clk 0:01:30.6]} 22. Bg5
{[%clk 0:00:57.2]} 22... e4 {[%clk 0:01:27.2]} 23. Nd4 {[%clk 0:00:41]} 23...
Nxd4 {[%clk 0:01:04.3]} 24. Rxd4 {[%clk 0:00:41.9]} 24... Ng4 {[%clk 0:01:03.7]}
25. g3 {[%clk 0:00:06.5]} 25... Bxg5 {[%clk 0:01:01.3]} 26. Rf1 {[%clk
0:00:06.2]} 26... Ne5 {[%clk 0:00:57.1]} 27. f4 {[%clk 0:00:03.3]} 27... exf3
{[%clk 0:00:56.4]} 28. Rdd1 {[%clk 0:00:01.9]} 28... Ng4 {[%clk 0:00:51.4]} 29.
h3 {[%clk 0:00:01.7]} 29... Qxg3+ {[%clk 0:00:49.3]} 0-1

[Event "*** Titled Tuesday Blitz"]
[Site "Chess.com"]
[Date "2020.11.10"]
[Round "10"]
[White "KononenkoD"]
[Black "Das_Virus_2020"]
[Result "1-0"]
[WhiteElo "2607"]
[BlackElo "2425"]
[TimeControl "180+1"]
[EndTime "12:01:32 PST"]
[Termination "KononenkoD won by resignation"]

1. d4 {[%clk 0:02:57.8]} 1... Nf6 {[%clk 0:02:56.8]} 2. c4 {[%clk 0:02:58.2]}
2... c5 {[%clk 0:02:56.5]} 3. Nf3 {[%clk 0:02:57.2]} 3... cxd4 {[%clk
0:02:56.3]} 4. Nxd4 {[%clk 0:02:58.1]} 4... b6 {[%clk 0:02:56.8]} 5. f3 {[%clk
0:02:54.3]} 5... Bb7 {[%clk 0:02:56.9]} 6. e4 {[%clk 0:02:54.7]} 6... d6 {[%clk
0:02:56.9]} 7. Nc3 {[%clk 0:02:55.1]} 7... Nbd7 {[%clk 0:02:57]} 8. Be3 {[%clk
0:02:55.3]} 8... e6 {[%clk 0:02:56.9]} 9. Be2 {[%clk 0:02:55.7]} 9... a6 {[%clk
0:02:55.8]} 10. O-O {[%clk 0:02:55.9]} 10... Rc8 {[%clk 0:02:53.3]} 11. Rc1
{[%clk 0:02:54.5]} 11... h6 {[%clk 0:02:52.4]} 12. Qe1 {[%clk 0:02:54.1]} 12...
g5 {[%clk 0:02:51]} 13. Qf2 {[%clk 0:02:43.4]} 13... Ne5 {[%clk 0:02:33.1]} 14.
Na4 {[%clk 0:02:31.6]} 14... Nfd7 {[%clk 0:02:31.6]} 15. b4 {[%clk 0:02:24.6]}
15... Rg8 {[%clk 0:02:14.8]} 16. Nb3 {[%clk 0:02:18.3]} 16... g4 {[%clk
0:01:40.9]} 17. f4 {[%clk 0:02:18]} 17... Ng6 {[%clk 0:01:23.2]} 18. Nxb6 {[%clk
0:01:53.3]} 18... Nxb6 {[%clk 0:01:22]} 19. Bxb6 {[%clk 0:01:54.2]} 19... Qd7
{[%clk 0:01:17.7]} 20. c5 {[%clk 0:01:46.4]} 20... Bxe4 {[%clk 0:01:13.6]} 21.
Bxa6 {[%clk 0:01:44.8]} 21... Rb8 {[%clk 0:00:56.5]} 22. Qe2 {[%clk 0:01:42.3]}
22... Bd5 {[%clk 0:00:46.6]} 23. Nd4 {[%clk 0:01:31.9]} 23... Bg7 {[%clk
0:00:39]} 24. Nb5 {[%clk 0:01:07.4]} 24... Rxb6 {[%clk 0:00:23.6]} 25. cxb6
{[%clk 0:01:04.3]} 25... Nh4 {[%clk 0:00:20.3]} 26. Nc7+ {[%clk 0:01:03.5]}
26... Kf8 {[%clk 0:00:19.6]} 27. Nxd5 {[%clk 0:01:03.4]} 27... Nf3+ {[%clk
0:00:19.5]} 28. Kh1 {[%clk 0:00:48.4]} 28... Nd4 {[%clk 0:00:17.6]} 29. Qc4
{[%clk 0:00:43.4]} 29... exd5 {[%clk 0:00:16.8]} 30. Qc8+ {[%clk 0:00:43.3]}
30... Qxc8 {[%clk 0:00:16]} 31. Rxc8+ {[%clk 0:00:42.6]} 1-0